[Event "*** Titled Tuesday Blitz"]
[Site "Chess.com"]
[Date "2020.05.05"]
[Round "2"]
[White "suneebaker"]
[Black "KarstenHansch"]
[Result "0-1"]
[WhiteElo "2178"]
[BlackElo "2417"]
[TimeControl "180+1"]
[EndTime "10:17:29 PDT"]
[Termination "KarstenHansch won by resignation"]

1. d4 {[%clk 0:03:00.9]} 1... d5 {[%clk 0:02:58.5]} 2. c4 {[%clk 0:02:59.7]}
2... e6 {[%clk 0:02:58.5]} 3. Nc3 {[%clk 0:02:59.4]} 3... Nf6 {[%clk 0:02:58.7]}
4. Nf3 {[%clk 0:02:58.8]} 4... Be7 {[%clk 0:02:58.3]} 5. Bf4 {[%clk 0:02:58.5]}
5... O-O {[%clk 0:02:58.3]} 6. e3 {[%clk 0:02:58.5]} 6... b6 {[%clk 0:02:58.5]}
7. cxd5 {[%clk 0:02:55.7]} 7... Nxd5 {[%clk 0:02:59.4]} 8. Nxd5 {[%clk 0:02:55]}
8... Qxd5 {[%clk 0:02:59.1]} 9. Bd3 {[%clk 0:02:54.4]} 9... Qa5+ {[%clk
0:02:56.4]} 10. Ke2 {[%clk 0:02:52.7]} 10... Ba6 {[%clk 0:02:36.7]} 11. Qc2
{[%clk 0:02:48.1]} 11... c5 {[%clk 0:02:29.1]} 12. dxc5 {[%clk 0:02:41.4]} 12...
Qxc5 {[%clk 0:02:23.4]} 13. Qxc5 {[%clk 0:02:39.8]} 13... Bxd3+ {[%clk 0:02:23]}
14. Kxd3 {[%clk 0:02:39.2]} 14... Bxc5 {[%clk 0:02:23.6]} 15. Rhd1 {[%clk
0:02:38.2]} 15... Nc6 {[%clk 0:02:21.1]} 16. Ke2 {[%clk 0:02:33.5]} 16... Rfd8
{[%clk 0:02:17.2]} 17. Rxd8+ {[%clk 0:02:31.7]} 17... Rxd8 {[%clk 0:02:16.5]}
18. Rd1 {[%clk 0:02:32.1]} 18... Rxd1 {[%clk 0:02:15.4]} 19. Kxd1 {[%clk
0:02:31.9]} 19... f6 {[%clk 0:02:15.6]} 20. Nd2 {[%clk 0:02:24.8]} 20... e5
{[%clk 0:02:14.4]} 21. Bg3 {[%clk 0:02:24.4]} 21... Kf7 {[%clk 0:02:12.3]} 22.
a3 {[%clk 0:02:20.8]} 22... a5 {[%clk 0:02:01.4]} 23. e4 {[%clk 0:02:19.8]}
23... Ke6 {[%clk 0:01:43.5]} 24. f3 {[%clk 0:02:19.3]} 24... b5 {[%clk
0:01:39.6]} 25. Nb3 {[%clk 0:02:15.6]} 25... Bb6 {[%clk 0:01:33.1]} 26. Ke2
{[%clk 0:02:09.9]} 26... a4 {[%clk 0:01:12.3]} 27. Nc1 {[%clk 0:02:09.1]} 27...
Na5 {[%clk 0:00:52.2]} 28. Nd3 {[%clk 0:02:05.7]} 28... Nc4 {[%clk 0:00:51.5]}
29. Bf2 {[%clk 0:02:03.8]} 29... Bxf2 {[%clk 0:00:39.1]} 30. Kxf2 {[%clk
0:02:03.2]} 30... Kd6 {[%clk 0:00:32.5]} 31. Ke2 {[%clk 0:02:02.8]} 31... Kc6
{[%clk 0:00:31.6]} 32. h4 {[%clk 0:01:58.2]} 32... h5 {[%clk 0:00:31]} 33. g4
{[%clk 0:01:56.7]} 33... g6 {[%clk 0:00:30.7]} 34. gxh5 {[%clk 0:01:54.4]} 34...
gxh5 {[%clk 0:00:30.6]} 35. Kd1 {[%clk 0:01:48.8]} 35... Ne3+ {[%clk 0:00:30.1]}
36. Ke2 {[%clk 0:01:48.3]} 36... Ng2 {[%clk 0:00:28.1]} 37. Kf2 {[%clk
0:01:46.2]} 37... Nxh4 {[%clk 0:00:27.8]} 38. f4 {[%clk 0:01:43.1]} 38... Ng6
{[%clk 0:00:26.2]} 39. f5 {[%clk 0:01:37.9]} 39... Nf4 {[%clk 0:00:20.3]} 40.
Nb4+ {[%clk 0:01:37.2]} 40... Kd6 {[%clk 0:00:19.8]} 41. Kg3 {[%clk 0:01:34.7]}
41... Ne2+ {[%clk 0:00:19.5]} 42. Kh4 {[%clk 0:01:32.4]} 42... Nd4 {[%clk
0:00:19.6]} 43. Nd5 {[%clk 0:01:29.3]} 43... Nxf5+ {[%clk 0:00:18.4]} 44. Kxh5
{[%clk 0:01:26]} 44... Ng3+ {[%clk 0:00:18.5]} 45. Kg4 {[%clk 0:01:22.4]} 45...
Nxe4 {[%clk 0:00:19.4]} 46. Kf5 {[%clk 0:01:22.2]} 46... Kxd5 {[%clk 0:00:18.9]}
0-1

[Event "*** Titled Tuesday Blitz"]
[Site "Chess.com"]
[Date "2020.05.05"]
[Round "2"]
[White "Hikaru"]
[Black "Reader777"]
[Result "1-0"]
[WhiteElo "3166"]
[BlackElo "2599"]
[TimeControl "180+1"]
[EndTime "10:17:30 PDT"]
[Termination "Hikaru won by resignation"]

1. Nf3 {[%clk 0:03:00.9]} 1... d5 {[%clk 0:02:59]} 2. b3 {[%clk 0:03:00.9]} 2...
Nf6 {[%clk 0:02:58.3]} 3. Bb2 {[%clk 0:03:00.5]} 3... e6 {[%clk 0:02:58.4]} 4.
e3 {[%clk 0:03:00.5]} 4... b6 {[%clk 0:02:56.4]} 5. c4 {[%clk 0:02:58.8]} 5...
Bb7 {[%clk 0:02:55.3]} 6. d4 {[%clk 0:02:58.5]} 6... Nbd7 {[%clk 0:02:53.8]} 7.
Nc3 {[%clk 0:02:56.3]} 7... a6 {[%clk 0:02:49.3]} 8. Bd3 {[%clk 0:02:55.2]} 8...
Bd6 {[%clk 0:02:49.4]} 9. O-O {[%clk 0:02:53.8]} 9... O-O {[%clk 0:02:49.6]} 10.
Rc1 {[%clk 0:02:52.8]} 10... Qe7 {[%clk 0:02:41.4]} 11. Re1 {[%clk 0:02:49.7]}
11... Rfe8 {[%clk 0:02:29.1]} 12. e4 {[%clk 0:02:47.8]} 12... dxe4 {[%clk
0:02:28.1]} 13. Nxe4 {[%clk 0:02:48.7]} 13... Nxe4 {[%clk 0:02:28]} 14. Bxe4
{[%clk 0:02:49.6]} 14... Bxe4 {[%clk 0:02:28.2]} 15. Rxe4 {[%clk 0:02:50.5]}
15... Nf6 {[%clk 0:02:28]} 16. Re2 {[%clk 0:02:50.5]} 16... Rad8 {[%clk
0:02:23.3]} 17. Qc2 {[%clk 0:02:43.8]} 17... Ba3 {[%clk 0:01:56.4]} 18. Rce1
{[%clk 0:02:39.2]} 18... Bxb2 {[%clk 0:01:56.2]} 19. Qxb2 {[%clk 0:02:40.1]}
19... Qd6 {[%clk 0:01:53.3]} 20. g3 {[%clk 0:02:36.6]} 20... c5 {[%clk
0:01:50.4]} 21. dxc5 {[%clk 0:02:33.4]} 21... Qxc5 {[%clk 0:01:50.6]} 22. Ne5
{[%clk 0:02:33.4]} 22... Nd7 {[%clk 0:01:46.3]} 23. Nf3 {[%clk 0:02:28.4]} 23...
Nf6 {[%clk 0:01:44.7]} 24. Qc3 {[%clk 0:02:26.2]} 24... b5 {[%clk 0:01:39.4]}
25. Qa5 {[%clk 0:02:19.4]} 25... Qf5 {[%clk 0:01:13.4]} 26. Nh4 {[%clk
0:01:59.6]} 26... Qh3 {[%clk 0:01:07.2]} 27. cxb5 {[%clk 0:01:56.6]} 27... Ng4
{[%clk 0:01:05]} 28. f3 {[%clk 0:01:51]} 28... Nxh2 {[%clk 0:01:00.2]} 29. Rxh2
{[%clk 0:01:51.1]} 29... Qxg3+ {[%clk 0:01:00.7]} 30. Kh1 {[%clk 0:01:47.5]}
30... axb5 {[%clk 0:00:45.8]} 31. Rg1 {[%clk 0:01:47]} 31... Qe5 {[%clk
0:00:45.5]} 32. Qe1 {[%clk 0:01:41.4]} 32... Qf6 {[%clk 0:00:41.7]} 33. Qe4
{[%clk 0:01:34.8]} 33... Rd4 {[%clk 0:00:38.8]} 34. Qxh7+ {[%clk 0:01:31.2]}
34... Kxh7 {[%clk 0:00:34.8]} 35. Ng6+ {[%clk 0:01:31.6]} 35... Rh4 {[%clk
0:00:31.6]} 36. Rxh4+ {[%clk 0:01:31.8]} 36... Qxh4+ {[%clk 0:00:32.2]} 37. Nxh4
{[%clk 0:01:32.7]} 37... Ra8 {[%clk 0:00:32.5]} 38. Rg2 {[%clk 0:01:31.6]} 38...
f6 {[%clk 0:00:31.6]} 39. f4 {[%clk 0:01:30.4]} 39... e5 {[%clk 0:00:29.7]} 40.
fxe5 {[%clk 0:01:30.4]} 40... fxe5 {[%clk 0:00:30.4]} 41. Nf3 {[%clk 0:01:31]}
41... Re8 {[%clk 0:00:29.3]} 42. Re2 {[%clk 0:01:31.1]} 42... e4 {[%clk
0:00:26.9]} 43. Rxe4 {[%clk 0:01:27.7]} 43... Ra8 {[%clk 0:00:23.9]} 44. Re2
{[%clk 0:01:27.4]} 44... Kg6 {[%clk 0:00:22.8]} 45. Nd4 {[%clk 0:01:24.1]} 45...
b4 {[%clk 0:00:22.3]} 46. Nc6 {[%clk 0:01:24.3]} 46... Rh8+ {[%clk 0:00:18.4]}
47. Rh2 {[%clk 0:01:24.2]} 47... Rh4 {[%clk 0:00:19.3]} 1-0

[Event "*** Titled Tuesday Blitz"]
[Site "Chess.com"]
[Date "2020.05.05"]
[Round "2"]
[White "Maksimus1998"]
[Black "Baby_Legs"]
[Result "0-1"]
[WhiteElo "2472"]
[BlackElo "2684"]
[TimeControl "180+1"]
[EndTime "10:17:30 PDT"]
[Termination "Baby_Legs won by resignation"]

1. c4 {[%clk 0:03:00.9]} 1... e6 {[%clk 0:02:57.8]} 2. Nc3 {[%clk 0:03:00.5]}
2... d5 {[%clk 0:02:57.5]} 3. d4 {[%clk 0:03:00.4]} 3... Bb4 {[%clk 0:02:57]} 4.
cxd5 {[%clk 0:02:58.1]} 4... exd5 {[%clk 0:02:56.6]} 5. Bf4 {[%clk 0:02:58.2]}
5... c6 {[%clk 0:02:55.9]} 6. e3 {[%clk 0:02:57.7]} 6... Bf5 {[%clk 0:02:52.6]}
7. Ne2 {[%clk 0:02:50.6]} 7... Nf6 {[%clk 0:02:47.6]} 8. Ng3 {[%clk 0:02:50]}
8... Bg6 {[%clk 0:02:47.7]} 9. h4 {[%clk 0:02:49.7]} 9... h5 {[%clk 0:02:23]}
10. Bd3 {[%clk 0:02:47.9]} 10... Bxd3 {[%clk 0:02:22.1]} 11. Qxd3 {[%clk
0:02:48.8]} 11... g6 {[%clk 0:02:20]} 12. O-O-O {[%clk 0:02:30.9]} 12... O-O
{[%clk 0:02:07.8]} 13. Bg5 {[%clk 0:02:19]} 13... Nbd7 {[%clk 0:02:07]} 14. f4
{[%clk 0:02:11]} 14... Qa5 {[%clk 0:02:01.7]} 15. Kb1 {[%clk 0:02:08.8]} 15...
Bxc3 {[%clk 0:02:00.6]} 16. bxc3 {[%clk 0:02:08.7]} 16... Rfe8 {[%clk
0:01:49.2]} 17. f5 {[%clk 0:02:08.1]} 17... Ne4 {[%clk 0:01:47]} 18. Ne2 {[%clk
0:01:54.2]} 18... Nb6 {[%clk 0:01:41.3]} 19. fxg6 {[%clk 0:01:52.3]} 19... fxg6
{[%clk 0:01:41.6]} 20. Rhf1 {[%clk 0:01:30.2]} 20... Na4 {[%clk 0:01:37.2]} 21.
Ka1 {[%clk 0:01:29.8]} 21... Naxc3 {[%clk 0:01:33.4]} 22. Nxc3 {[%clk
0:01:29.4]} 22... Qxc3+ {[%clk 0:01:33.5]} 23. Qxc3 {[%clk 0:01:29.3]} 23...
Nxc3 {[%clk 0:01:34.4]} 24. Rde1 {[%clk 0:01:24.7]} 24... Rf8 {[%clk 0:01:31.6]}
25. Bh6 {[%clk 0:01:23.4]} 25... Rxf1 {[%clk 0:01:17.8]} 26. Rxf1 {[%clk
0:01:24.3]} 26... Kh7 {[%clk 0:01:17.2]} 27. Bg5 {[%clk 0:01:20.9]} 27... Kg7
{[%clk 0:01:15.4]} 28. Bf6+ {[%clk 0:01:20.1]} 28... Kg8 {[%clk 0:01:11.7]} 29.
Kb2 {[%clk 0:01:07.9]} 29... Ne4 {[%clk 0:01:09.6]} 30. Be7 {[%clk 0:01:08]}
30... Re8 {[%clk 0:01:08.9]} 31. Bb4 {[%clk 0:01:06.6]} 31... Kg7 {[%clk
0:01:03.6]} 32. Rf3 {[%clk 0:01:03.2]} 32... b6 {[%clk 0:00:58.6]} 33. Kc2
{[%clk 0:01:02.9]} 33... a5 {[%clk 0:00:57.2]} 34. Be1 {[%clk 0:01:02.3]} 34...
Rf8 {[%clk 0:00:55.5]} 35. Kd3 {[%clk 0:01:00.2]} 35... Rf5 {[%clk 0:00:54.9]}
36. a4 {[%clk 0:00:58.4]} 36... Kf6 {[%clk 0:00:53.5]} 37. Bg3 {[%clk
0:00:53.7]} 37... Nxg3 {[%clk 0:00:51]} 38. Rxg3 {[%clk 0:00:53.8]} 38... Rf1
{[%clk 0:00:51]} 39. Rg5 {[%clk 0:00:53.8]} 39... Ra1 {[%clk 0:00:49.6]} 40. e4
{[%clk 0:00:53.9]} 40... Ra3+ {[%clk 0:00:49.1]} 41. Kc2 {[%clk 0:00:53]} 41...
dxe4 {[%clk 0:00:49.4]} 42. d5 {[%clk 0:00:53.4]} 42... cxd5 {[%clk 0:00:49.2]}
43. Rxd5 {[%clk 0:00:53.5]} 43... Rxa4 {[%clk 0:00:49.7]} 44. Rd6+ {[%clk
0:00:53.9]} 44... Kf5 {[%clk 0:00:50.2]} 45. Rxb6 {[%clk 0:00:54.8]} 45... Ra2+
{[%clk 0:00:50]} 46. Kc3 {[%clk 0:00:55]} 46... Rxg2 {[%clk 0:00:50.5]} 47. Rb5+
{[%clk 0:00:55.4]} 47... Kf4 {[%clk 0:00:50.3]} 48. Rxa5 {[%clk 0:00:56.3]} 0-1

[Event "*** Titled Tuesday Blitz"]
[Site "Chess.com"]
[Date "2020.05.05"]
[Round "2"]
[White "Pavlov_Sergey"]
[Black "Micki-taryan"]
[Result "0-1"]
[WhiteElo "2588"]
[BlackElo "3079"]
[TimeControl "180+1"]
[EndTime "10:17:32 PDT"]
[Termination "Micki-taryan won by resignation"]

1. c4 {[%clk 0:03:00.9]} 1... e6 {[%clk 0:02:59.7]} 2. g3 {[%clk 0:03:00.3]}
2... d5 {[%clk 0:03:00.6]} 3. Bg2 {[%clk 0:03:00.4]} 3... Nf6 {[%clk 0:03:01.1]}
4. Nf3 {[%clk 0:03:00.4]} 4... d4 {[%clk 0:03:00.7]} 5. O-O {[%clk 0:02:59.3]}
5... c5 {[%clk 0:03:01]} 6. e3 {[%clk 0:02:59.8]} 6... Nc6 {[%clk 0:03:01.1]} 7.
exd4 {[%clk 0:02:59.7]} 7... cxd4 {[%clk 0:03:02]} 8. d3 {[%clk 0:03:00.1]} 8...
Be7 {[%clk 0:03:01.9]} 9. Na3 {[%clk 0:02:55.8]} 9... O-O {[%clk 0:03:00.4]} 10.
Nc2 {[%clk 0:02:49.8]} 10... a5 {[%clk 0:03:00.2]} 11. Re1 {[%clk 0:02:45.1]}
11... Bd6 {[%clk 0:02:43.4]} 12. a3 {[%clk 0:02:24]} 12... e5 {[%clk 0:02:41.6]}
13. b3 {[%clk 0:02:14.5]} 13... h6 {[%clk 0:02:40.1]} 14. Rb1 {[%clk 0:02:13.4]}
14... Bf5 {[%clk 0:02:36.2]} 15. b4 {[%clk 0:02:09.3]} 15... axb4 {[%clk
0:02:36.1]} 16. axb4 {[%clk 0:02:09.7]} 16... Re8 {[%clk 0:02:17.7]} 17. b5
{[%clk 0:01:54.4]} 17... Nb8 {[%clk 0:02:16.9]} 18. Nh4 {[%clk 0:01:50.6]} 18...
Bc8 {[%clk 0:02:16.7]} 19. Nb4 {[%clk 0:01:44.1]} 19... Nbd7 {[%clk 0:02:13.5]}
20. Nf5 {[%clk 0:00:58.1]} 20... Bxb4 {[%clk 0:02:02.7]} 21. Rxb4 {[%clk
0:00:57.5]} 21... Nc5 {[%clk 0:02:03.6]} 22. g4 {[%clk 0:00:46.1]} 22... Ra1
{[%clk 0:01:53.6]} 23. Bf1 {[%clk 0:00:30.9]} 23... Rxc1 {[%clk 0:01:17.5]} 24.
Qxc1 {[%clk 0:00:29.9]} 24... Nxg4 {[%clk 0:01:18.4]} 25. h3 {[%clk 0:00:21.2]}
25... Bxf5 {[%clk 0:01:12.1]} 26. hxg4 {[%clk 0:00:21.1]} 26... Bxd3 {[%clk
0:01:10.7]} 27. Bg2 {[%clk 0:00:18.3]} 27... e4 {[%clk 0:01:09.3]} 28. Qd2
{[%clk 0:00:16]} 28... Qf6 {[%clk 0:01:07.9]} 29. Rb2 {[%clk 0:00:10.2]} 29...
b6 {[%clk 0:01:04.1]} 30. Ra2 {[%clk 0:00:09.8]} 30... Bxc4 {[%clk 0:01:04.4]}
31. Ra7 {[%clk 0:00:09.7]} 31... g5 {[%clk 0:01:00.8]} 32. Rc1 {[%clk
0:00:08.6]} 32... Nb3 {[%clk 0:01:00.9]} 0-1

[Event "*** Titled Tuesday Blitz"]
[Site "Chess.com"]
[Date "2020.05.05"]
[Round "2"]
[White "Budisavljevic"]
[Black "Belka1989"]
[Result "1-0"]
[WhiteElo "2405"]
[BlackElo "2146"]
[TimeControl "180+1"]
[EndTime "10:17:32 PDT"]
[Termination "Budisavljevic won by checkmate"]

1. d4 {[%clk 0:03:00.9]} 1... Nf6 {[%clk 0:02:59]} 2. Nf3 {[%clk 0:03:01.2]}
2... d5 {[%clk 0:02:58.6]} 3. e3 {[%clk 0:03:00]} 3... Bg4 {[%clk 0:02:58.4]} 4.
c4 {[%clk 0:02:59.5]} 4... e6 {[%clk 0:02:58.3]} 5. Qb3 {[%clk 0:02:59.8]} 5...
Bxf3 {[%clk 0:02:38.8]} 6. Qxb7 {[%clk 0:02:57.5]} 6... Bxg2 {[%clk 0:02:38.2]}
7. Bxg2 {[%clk 0:02:57.9]} 7... Nbd7 {[%clk 0:02:34.5]} 8. Nc3 {[%clk
0:02:55.4]} 8... Rb8 {[%clk 0:02:32.2]} 9. Qc6 {[%clk 0:02:53.6]} 9... Bb4
{[%clk 0:02:18.1]} 10. O-O {[%clk 0:02:45.2]} 10... dxc4 {[%clk 0:02:16.6]} 11.
Qxc4 {[%clk 0:02:43.8]} 11... Bxc3 {[%clk 0:02:16]} 12. bxc3 {[%clk 0:02:42.6]}
12... O-O {[%clk 0:02:15.9]} 13. e4 {[%clk 0:02:41.9]} 13... Nb6 {[%clk
0:02:15.4]} 14. Qe2 {[%clk 0:02:39.1]} 14... Re8 {[%clk 0:02:12.8]} 15. Bg5
{[%clk 0:02:37.3]} 15... h6 {[%clk 0:02:11.5]} 16. Bh4 {[%clk 0:02:34.3]} 16...
g5 {[%clk 0:01:59.4]} 17. Bg3 {[%clk 0:02:34.6]} 17... Rc8 {[%clk 0:01:48.3]}
18. h4 {[%clk 0:02:24.1]} 18... Nh7 {[%clk 0:01:39.3]} 19. hxg5 {[%clk
0:02:19.5]} 19... Qxg5 {[%clk 0:01:40.2]} 20. Kh2 {[%clk 0:02:09.4]} 20... Nf6
{[%clk 0:01:35.5]} 21. Bf3 {[%clk 0:02:05.4]} 21... Kh8 {[%clk 0:01:20]} 22. Rg1
{[%clk 0:02:02.4]} 22... Rg8 {[%clk 0:01:12.3]} 23. Rg2 {[%clk 0:02:00.3]} 23...
c5 {[%clk 0:00:58.1]} 24. Be5 {[%clk 0:01:47.8]} 24... Qh4+ {[%clk 0:00:54.5]}
25. Kg1 {[%clk 0:01:48.3]} 25... Rxg2+ {[%clk 0:00:52.4]} 26. Bxg2 {[%clk
0:01:49.2]} 26... Kg8 {[%clk 0:00:34.4]} 27. Qf3 {[%clk 0:01:41.6]} 27... Nfd7
{[%clk 0:00:28.7]} 28. Bg3 {[%clk 0:01:38]} 28... Qf6 {[%clk 0:00:27.2]} 29. e5
{[%clk 0:01:33.2]} 29... Qxf3 {[%clk 0:00:26.6]} 30. Bxf3 {[%clk 0:01:32.4]}
30... cxd4 {[%clk 0:00:27.5]} 31. cxd4 {[%clk 0:01:32.7]} 31... Rc4 {[%clk
0:00:26.3]} 32. Rd1 {[%clk 0:01:30.9]} 32... Nd5 {[%clk 0:00:25.6]} 33. Bxd5
{[%clk 0:01:26.4]} 33... exd5 {[%clk 0:00:26.5]} 34. Bf4 {[%clk 0:01:26.4]}
34... Kg7 {[%clk 0:00:26.1]} 35. Kg2 {[%clk 0:01:22.9]} 35... Nb6 {[%clk
0:00:26]} 36. Be3 {[%clk 0:01:19.6]} 36... Rc2 {[%clk 0:00:25.9]} 37. Rh1 {[%clk
0:01:18.6]} 37... Rxa2 {[%clk 0:00:21.5]} 38. Bxh6+ {[%clk 0:01:16.9]} 38... Kg6
{[%clk 0:00:20.9]} 39. Kf3 {[%clk 0:01:10.9]} 39... Nc4 {[%clk 0:00:21]} 40. Bf8
{[%clk 0:01:05.7]} 40... Nd2+ {[%clk 0:00:20.8]} 41. Kg4 {[%clk 0:01:04]} 41...
Ra4 {[%clk 0:00:19.6]} 42. Rh6# {[%clk 0:01:03.1]} 1-0

[Event "*** Titled Tuesday Blitz"]
[Site "Chess.com"]
[Date "2020.05.05"]
[Round "2"]
[White "Zavgorodniy_Serg"]
[Black "SmirnovAlexandrA"]
[Result "1-0"]
[WhiteElo "2675"]
[BlackElo "2324"]
[TimeControl "180+1"]
[EndTime "10:17:33 PDT"]
[Termination "Zavgorodniy_Serg won by resignation"]

1. e4 {[%clk 0:02:59.9]} 1... c5 {[%clk 0:02:57.1]} 2. Nf3 {[%clk 0:02:59.2]}
2... d6 {[%clk 0:02:57.4]} 3. c3 {[%clk 0:02:59]} 3... Nf6 {[%clk 0:02:57]} 4.
Bc4 {[%clk 0:02:58.4]} 4... g6 {[%clk 0:02:53.9]} 5. e5 {[%clk 0:02:57.2]} 5...
dxe5 {[%clk 0:02:52.6]} 6. Nxe5 {[%clk 0:02:50.8]} 6... e6 {[%clk 0:02:52.7]} 7.
d4 {[%clk 0:02:51.7]} 7... Nbd7 {[%clk 0:02:48.5]} 8. Qe2 {[%clk 0:02:43]} 8...
Nxe5 {[%clk 0:02:47.4]} 9. dxe5 {[%clk 0:02:42.3]} 9... Nd5 {[%clk 0:02:43.7]}
10. O-O {[%clk 0:02:37.6]} 10... Bg7 {[%clk 0:02:43.4]} 11. Nd2 {[%clk
0:02:24.5]} 11... O-O {[%clk 0:02:32.8]} 12. f4 {[%clk 0:02:24.3]} 12... a6
{[%clk 0:02:30.7]} 13. Ne4 {[%clk 0:02:22.2]} 13... b5 {[%clk 0:02:28.6]} 14.
Bb3 {[%clk 0:02:20.6]} 14... c4 {[%clk 0:02:25.4]} 15. Bc2 {[%clk 0:02:18.4]}
15... Bb7 {[%clk 0:02:24.8]} 16. Kh1 {[%clk 0:01:56.5]} 16... Qb6 {[%clk
0:02:20.2]} 17. a4 {[%clk 0:01:46.3]} 17... Rfd8 {[%clk 0:02:17.7]} 18. Nd6
{[%clk 0:01:42.7]} 18... Bc6 {[%clk 0:02:08.4]} 19. Be4 {[%clk 0:01:40.7]} 19...
Bf8 {[%clk 0:02:04.4]} 20. f5 {[%clk 0:01:30]} 20... exf5 {[%clk 0:02:00.8]} 21.
Nxf5 {[%clk 0:01:06.1]} 21... gxf5 {[%clk 0:01:33.4]} 22. Bxf5 {[%clk
0:01:05.6]} 22... Bd7 {[%clk 0:01:29]} 23. Bxd7 {[%clk 0:01:03.6]} 23... Rxd7
{[%clk 0:01:10.5]} 24. Qg4+ {[%clk 0:01:02.7]} 24... Qg6 {[%clk 0:01:10.8]} 25.
Qxd7 {[%clk 0:01:02.3]} 25... Nb6 {[%clk 0:01:01]} 26. Qb7 {[%clk 0:00:59]}
26... Rd8 {[%clk 0:00:58.6]} 27. Qxa6 {[%clk 0:00:52.5]} 27... Bc5 {[%clk
0:00:55.4]} 28. Qxb5 {[%clk 0:00:45.8]} 28... Qf5 {[%clk 0:00:43.7]} 29. Bf4
{[%clk 0:00:38]} 29... Nd7 {[%clk 0:00:37.8]} 30. Rad1 {[%clk 0:00:33]} 1-0

[Event "*** Titled Tuesday Blitz"]
[Site "Chess.com"]
[Date "2020.05.05"]
[Round "2"]
[White "ADODOVE"]
[Black "garicradomir"]
[Result "0-1"]
[WhiteElo "1980"]
[BlackElo "2359"]
[TimeControl "180+1"]
[EndTime "10:17:33 PDT"]
[Termination "garicradomir won on time"]

1. e4 {[%clk 0:03:00.9]} 1... c5 {[%clk 0:02:59.1]} 2. Nf3 {[%clk 0:02:58.9]}
2... Nc6 {[%clk 0:02:59.5]} 3. d4 {[%clk 0:02:58.4]} 3... cxd4 {[%clk
0:03:00.4]} 4. Nxd4 {[%clk 0:02:58.4]} 4... e5 {[%clk 0:03:01]} 5. Nb5 {[%clk
0:02:57.1]} 5... d6 {[%clk 0:03:01.2]} 6. N1c3 {[%clk 0:02:54.4]} 6... a6 {[%clk
0:03:00.9]} 7. Na3 {[%clk 0:02:54.2]} 7... b5 {[%clk 0:03:01]} 8. Nd5 {[%clk
0:02:53.7]} 8... Nge7 {[%clk 0:03:01.5]} 9. c4 {[%clk 0:02:45.3]} 9... Nxd5
{[%clk 0:03:01.3]} 10. cxd5 {[%clk 0:02:43]} 10... Nd4 {[%clk 0:03:00.9]} 11.
Be3 {[%clk 0:02:38.1]} 11... Be7 {[%clk 0:02:54.2]} 12. Bd3 {[%clk 0:02:34.4]}
12... O-O {[%clk 0:02:47.6]} 13. O-O {[%clk 0:02:32.8]} 13... Bf6 {[%clk
0:02:39.1]} 14. Rc1 {[%clk 0:02:21.5]} 14... Bd7 {[%clk 0:02:38.7]} 15. Nc2
{[%clk 0:02:14.3]} 15... Qb6 {[%clk 0:02:28.7]} 16. Nxd4 {[%clk 0:01:34.2]}
16... exd4 {[%clk 0:02:29.6]} 17. e5 {[%clk 0:01:34.1]} 17... dxe5 {[%clk
0:02:18.9]} 18. Bd2 {[%clk 0:01:16.9]} 18... Qd6 {[%clk 0:02:03.9]} 19. Be4
{[%clk 0:01:13.1]} 19... Rac8 {[%clk 0:02:00.1]} 20. Qh5 {[%clk 0:01:07.1]}
20... g6 {[%clk 0:01:59.2]} 21. Qf3 {[%clk 0:01:04.2]} 21... Bg7 {[%clk
0:01:53.6]} 22. a3 {[%clk 0:01:01]} 22... f5 {[%clk 0:01:35.5]} 23. Bc2 {[%clk
0:00:53.5]} 23... e4 {[%clk 0:01:26.9]} 24. Qb3 {[%clk 0:00:43.5]} 24... Rfe8
{[%clk 0:01:17]} 25. Bb4 {[%clk 0:00:41.9]} 25... Qe5 {[%clk 0:01:16.7]} 26. f4
{[%clk 0:00:32.4]} 26... Qf6 {[%clk 0:01:05.6]} 27. g4 {[%clk 0:00:25.1]} 27...
fxg4 {[%clk 0:01:01.9]} 28. Rce1 {[%clk 0:00:16.8]} 28... d3 {[%clk 0:00:56.2]}
29. Bb1 {[%clk 0:00:13.7]} 29... Qd4+ {[%clk 0:00:56.2]} 30. Kh1 {[%clk
0:00:01.4]} 30... Qc4 {[%clk 0:00:56.3]} 0-1

[Event "*** Titled Tuesday Blitz"]
[Site "Chess.com"]
[Date "2020.05.05"]
[Round "2"]
[White "Omk124"]
[Black "KNVB"]
[Result "0-1"]
[WhiteElo "2409"]
[BlackElo "2769"]
[TimeControl "180+1"]
[EndTime "10:17:36 PDT"]
[Termination "KNVB won by resignation"]

1. e4 {[%clk 0:03:00.9]} 1... b6 {[%clk 0:03:00.2]} 2. d4 {[%clk 0:03:00.6]}
2... Bb7 {[%clk 0:03:00.6]} 3. Bd3 {[%clk 0:03:01.2]} 3... e6 {[%clk 0:03:01.1]}
4. Nf3 {[%clk 0:03:01]} 4... d5 {[%clk 0:03:01.6]} 5. e5 {[%clk 0:03:00.9]} 5...
Ba6 {[%clk 0:03:01.7]} 6. O-O {[%clk 0:02:59]} 6... Bxd3 {[%clk 0:03:01.3]} 7.
Qxd3 {[%clk 0:02:59.9]} 7... Qd7 {[%clk 0:03:01.9]} 8. c3 {[%clk 0:03:00.5]}
8... Ne7 {[%clk 0:03:01.8]} 9. Be3 {[%clk 0:02:58.6]} 9... Nf5 {[%clk 0:03:01]}
10. Nbd2 {[%clk 0:02:58.9]} 10... c5 {[%clk 0:03:01.3]} 11. Rac1 {[%clk
0:02:54.3]} 11... Nc6 {[%clk 0:02:59.1]} 12. Rfe1 {[%clk 0:02:54.4]} 12... Be7
{[%clk 0:02:59.2]} 13. Nf1 {[%clk 0:02:54.7]} 13... c4 {[%clk 0:02:58.4]} 14.
Qd2 {[%clk 0:02:54.3]} 14... b5 {[%clk 0:02:58.5]} 15. Ng3 {[%clk 0:02:53.6]}
15... Nxg3 {[%clk 0:02:56.6]} 16. fxg3 {[%clk 0:02:49.4]} 16... b4 {[%clk
0:02:53.4]} 17. Rf1 {[%clk 0:02:48.5]} 17... h6 {[%clk 0:02:52.4]} 18. Nh4
{[%clk 0:02:46.9]} 18... a5 {[%clk 0:02:39.2]} 19. Qc2 {[%clk 0:02:42]} 19... a4
{[%clk 0:02:17.6]} 20. Qf2 {[%clk 0:02:23]} 20... Rf8 {[%clk 0:02:02.9]} 21. Qe2
{[%clk 0:02:14]} 21... a3 {[%clk 0:01:53.8]} 22. Rf2 {[%clk 0:01:35.9]} 22...
axb2 {[%clk 0:01:18.2]} 23. Qxb2 {[%clk 0:01:35.4]} 23... Qa7 {[%clk 0:01:18.8]}
24. Rcf1 {[%clk 0:01:25.4]} 24... Qa3 {[%clk 0:01:18.6]} 25. cxb4 {[%clk
0:00:57.4]} 25... Qxe3 {[%clk 0:01:14.2]} 26. b5 {[%clk 0:00:57.7]} 26... Nxd4
{[%clk 0:00:48]} 27. b6 {[%clk 0:00:57.7]} 27... Kd7 {[%clk 0:00:42.5]} 28. b7
{[%clk 0:00:57.5]} 28... Rab8 {[%clk 0:00:42.6]} 29. Kh1 {[%clk 0:00:56.3]}
29... Nc6 {[%clk 0:00:40.4]} 30. Qb5 {[%clk 0:00:49.5]} 30... Kc7 {[%clk
0:00:37.4]} 31. Rb2 {[%clk 0:00:47]} 31... Qc5 {[%clk 0:00:31.9]} 32. Qa6 {[%clk
0:00:43.6]} 32... Qa5 {[%clk 0:00:25.8]} 33. Qxa5+ {[%clk 0:00:38.6]} 33... Nxa5
{[%clk 0:00:26.7]} 34. Rbf2 {[%clk 0:00:39]} 34... Rxb7 {[%clk 0:00:25.3]} 35.
h3 {[%clk 0:00:39.2]} 35... Bxh4 {[%clk 0:00:24.7]} 36. gxh4 {[%clk 0:00:39.4]}
36... Kc6 {[%clk 0:00:24]} 0-1